fUST/lending_fUST_20250129
["ID","MTS","AMOUNT","RATE_DAILY","PERIOD"]
[350735454,1738095049297,-2467.19,0.00017671,2]
[350735455,1738095049313,-3673.36,0.00017671,2]
[350735456,1738095049329,-1341.71,0.00017671,2]
[350735457,1738095049346,-622.61,0.00017671,2]
[350735458,1738095049364,-798.14,0.00017671,2]
[350735459,1738095049376,-500.0,0.00017671,2]
[350735460,1738095049388,-1780.37,0.00017671,2]
[350735461,1738095049402,-529.27,0.00017671,2]
[350735462,1738095049418,-553.58,0.00017671,2]
[350735463,1738095049433,-500.0,0.00017671,2]
[350735464,1738095049446,-500.0,0.00017671,2]
[350735465,1738095049460,-1613.34,0.00017671,2]
[350735466,1738095049476,-706.69,0.00017671,2]
[350735467,1738095049488,-500.0,0.00017671,2]
[350735468,1738095049501,-5671.42,0.00017671,2]
[350735469,1738095049514,-500.0,0.00017671,2]
[350735470,1738095049528,-500.0,0.00017671,2]
[350735471,1738095049540,-1191.48,0.00017671,2]
[350735472,1738095049553,-673.03,0.00017671,2]
[350735473,1738095049566,-755.48,0.00017671,2]
[350735474,1738095049580,-500.0,0.00017671,2]
[350735475,1738095049593,-1443.87,0.00017671,2]
[350735476,1738095049606,-728.33,0.00017671,2]
[350735477,1738095049619,-523.45,0.00017671,2]
[350735478,1738095049632,-32359.06516589,0.000177,2]
[350735479,1738095049645,-150.298728,0.000177,2]
[350735480,1738095049658,-150.0,0.00017756,2]
[350735481,1738095049673,-150.309,0.00017756,2]
[350735482,1738095049687,-150.0,0.00017756,2]
[350735483,1738095049701,-150.0,0.00017756,2]
[350735484,1738095049713,-541.316,0.00017756,2]
[350735485,1738095049726,-2043.0,0.00017756,2]
[350735486,1738095049740,-2307.0,0.00017756,2]
[350735487,1738095049752,-537.53,0.00017808,2]
[350735488,1738095049765,-500.0,0.00017808,2]
[350735489,1738095049778,-501.94045708,0.00017808,2]
[350735490,1738095049791,-500.0,0.00017808,2]
[350735491,1738095049806,-935.05,0.00017808,2]
[350735492,1738095049819,-500.0,0.00017808,2]
[350735493,1738095049832,-13791.98,0.00017808,2]
[350735494,1738095049848,-783.58,0.00017808,2]
[350735495,1738095049861,-651.72,0.00017808,2]
[350735496,1738095049874,-1395.62,0.00017808,2]
[350735497,1738095049887,-359.30493667,0.00017808,2]
[350735498,1738095049900,-500.0,0.00017808,2]
[350735499,1738095049914,-4374.37,0.00017808,2]
[350735500,1738095049928,-928.46,0.00017808,2]
[350735501,1738095049940,-500.0,0.00017808,2]
[350735502,1738095049953,-2107.22,0.00017808,2]
[350735503,1738095049966,-500.0,0.00017808,2]
[350735504,1738095049979,-699.6,0.00017808,2]
[350735505,1738095049991,-613.1,0.00017808,2]
[350735506,1738095050004,-500.0,0.00017808,2]
[350735507,1738095050017,-500.0,0.00017808,2]
[350735508,1738095050030,-2467.19,0.00017808,2]
[350735509,1738095050044,-3673.36,0.00017808,2]
[350735510,1738095050056,-1341.71,0.00017808,2]
[350735511,1738095050069,-622.61,0.00017808,2]
[350735512,1738095050083,-798.14,0.00017808,2]
[350735513,1738095050242,-500.0,0.00017808,2]
[350735514,1738095050251,-1780.37,0.00017808,2]
[350735515,1738095050261,-529.27,0.00017808,2]
[350735516,1738095050270,-553.58,0.00017808,2]
[350735517,1738095050279,-214.90202485,0.00017808,2]
[350735518,1738095050291,-500.0,0.00017808,2]
[350735519,1738095050301,-1613.34,0.00017808,2]
[350735520,1738095050311,-706.69,0.00017808,2]
[350735521,1738095050321,-500.0,0.00017808,2]
[350735522,1738095050331,-5671.42,0.00017808,2]
[350735523,1738095050341,-500.0,0.00017808,2]
[350735524,1738095050351,-500.0,0.00017808,2]
[350735525,1738095050361,-1191.48,0.00017808,2]
[350735526,1738095050371,-673.03,0.00017808,2]
[350735527,1738095050381,-755.48,0.00017808,2]
[350735528,1738095050390,-500.0,0.00017808,2]
[350735529,1738095050399,-1443.87,0.00017808,2]
[350735530,1738095050409,-728.33,0.00017808,2]
[350735531,1738095050418,-523.45,0.00017808,2]
[350735532,1738095050427,-199.24,0.00017945,2]
[350735533,1738095050436,-199.31,0.00017945,2]
[350735534,1738095050447,-290.34162351,0.00017945,2]
[350735535,1738095050457,-500.0,0.00017945,2]
[350735536,1738095050467,-500.0,0.00017945,2]
[350735537,1738095050478,-155.30613308,0.00017945,2]
[350735538,1738095050487,-537.53,0.00017945,2]
[350735539,1738095050498,-500.0,0.00017945,2]
[350735540,1738095050507,-500.0,0.00017945,2]
[350735541,1738095050516,-935.05,0.00017945,2]
[350735542,1738095050526,-500.0,0.00017945,2]
[350735543,1738095050538,-13791.98,0.00017945,2]
[350735544,1738095050547,-783.58,0.00017945,2]
[350735545,1738095050558,-651.72,0.00017945,2]
[350735546,1738095050569,-1395.62,0.00017945,2]
[350735547,1738095050580,-500.0,0.00017945,2]
[350735548,1738095050592,-4374.37,0.00017945,2]
[350735549,1738095050602,-928.46,0.00017945,2]
[350735550,1738095050612,-500.0,0.00017945,2]
[350735551,1738095050621,-2107.22,0.00017945,2]
[350735552,1738095050630,-500.0,0.00017945,2]
[350735553,1738095050640,-699.6,0.00017945,2]
[350735554,1738095050650,-613.1,0.00017945,2]
[350735555,1738095050659,-537.24,0.00017945,2]
[350735556,1738095050668,-500.0,0.00017945,2]
[350735557,1738095050677,-2467.19,0.00017945,2]
[350735558,1738095050687,-3673.36,0.00017945,2]
[350735559,1738095050696,-1341.71,0.00017945,2]
[350735560,1738095050706,-622.61,0.00017945,2]
[350735561,1738095050715,-798.14,0.00017945,2]
[350735562,1738095050725,-469.34861853,0.00017945,2]
[350735563,1738095050734,-1780.37,0.00017945,2]
[350735564,1738095050743,-529.27,0.00017945,2]
[350735565,1738095050754,-553.58,0.00017945,2]
[350735566,1738095050764,-628.9787172,0.00017945,2]
[350735567,1738095050775,-1613.34,0.00017945,2]
[350735568,1738095050784,-706.69,0.00017945,2]
[350735569,1738095050794,-546.78,0.00017945,2]
[350735570,1738095050806,-5671.42,0.00017945,2]
[350735571,1738095050815,-383.85,0.00017945,2]
[350735572,1738095050825,-500.0,0.00017945,2]
[350735573,1738095050834,-1191.48,0.00017945,2]
[350735574,1738095050844,-673.03,0.00017945,2]
[350735575,1738095050854,-755.48,0.00017945,2]
[350735576,1738095050863,-500.0,0.00017945,2]
[350735577,1738095050873,-1443.87,0.00017945,2]
[350735578,1738095050883,-717.73343266,0.00017987,2]
[350735579,1738095050893,-151.0,0.00018,2]
[350735580,1738095050902,-537.53,0.00018082,2]
[350735581,1738095050912,-500.0,0.00018082,2]
[350735582,1738095050921,-500.0,0.00018082,2]
[350735583,1738095050930,-935.05,0.00018082,2]
[350735584,1738095050940,-606.08785368,0.00018082,2]
[350735585,1738095050949,-13791.98,0.00018082,2]
[350735586,1738095050961,-783.58,0.00018082,2]
[350735587,1738095050970,-651.72,0.00018082,2]
[350735588,1738095050980,-1395.62,0.00018082,2]
[350735589,1738095050990,-500.0,0.00018082,2]
[350735590,1738095050999,-4374.37,0.00018082,2]
[350735591,1738095051008,-928.46,0.00018082,2]
[350735592,1738095051018,-500.0,0.00018082,2]
[350735593,1738095051027,-2107.22,0.00018082,2]
[350735594,1738095051037,-500.0,0.00018082,2]
[350735595,1738095051046,-699.6,0.00018082,2]
[350735596,1738095051055,-613.1,0.00018082,2]
[350735597,1738095051064,-500.0,0.00018082,2]
[350735598,1738095051073,-2467.19,0.00018082,2]
[350735599,1738095051083,-3673.36,0.00018082,2]
[350735600,1738095051092,-1341.71,0.00018082,2]
[350735601,1738095051101,-622.61,0.00018082,2]
[350735602,1738095051110,-798.14,0.00018082,2]
[350735603,1738095051120,-1780.37,0.00018082,2]
[350735604,1738095051129,-529.27,0.00018082,2]
[350735605,1738095051138,-553.58,0.00018082,2]
[350735606,1738095051148,-1613.34,0.00018082,2]
[350735607,1738095051157,-706.69,0.00018082,2]
[350735608,1738095051167,-5671.42,0.00018082,2]
[350735609,1738095051177,-500.0,0.00018082,2]
[350735610,1738095051186,-1191.48,0.00018082,2]
[350735611,1738095051195,-673.03,0.00018082,2]
[350735612,1738095051205,-755.48,0.00018082,2]
[350735613,1738095051215,-500.0,0.00018082,2]
[350735614,1738095051223,-1443.87,0.00018082,2]
[350735615,1738095051233,-666.657,0.00018204,2]
[350735616,1738095051243,-1200.0,0.00018204,2]
[350735617,1738095051252,-151.0,0.00018204,2]
[350735618,1738095051262,-500.0,0.00018219,2]
[350735619,1738095051271,-949.82,0.00018219,2]
[350735620,1738095051281,-537.53,0.00018219,2]
[350735621,1738095051290,-500.0,0.00018219,2]
[350735622,1738095051299,-156.73,0.00018219,2]
[350735623,1738095051309,-935.05,0.00018219,2]
[350735624,1738095051318,-13791.98,0.00018219,2]
[350735625,1738095051328,-783.58,0.00018219,2]
[350735626,1738095051337,-651.72,0.00018219,2]
[350735627,1738095051347,-1395.62,0.00018219,2]
[350735628,1738095051356,-213.1,0.00018219,2]
[350735629,1738095051365,-4374.37,0.00018219,2]
[350735630,1738095051374,-928.46,0.00018219,2]
[350735631,1738095051384,-500.0,0.00018219,2]
[350735632,1738095051393,-2107.22,0.00018219,2]
[350735633,1738095051403,-500.0,0.00018219,2]
[350735634,1738095051412,-699.6,0.00018219,2]
[350735635,1738095051423,-613.1,0.00018219,2]
[350735636,1738095051432,-500.0,0.00018219,2]
[350735637,1738095051441,-2467.19,0.00018219,2]
[350735638,1738095051451,-3673.36,0.00018219,2]
[350735639,1738095051460,-1341.71,0.00018219,2]
[350735640,1738095051470,-622.61,0.00018219,2]
[350735641,1738095051479,-798.14,0.00018219,2]
[350735642,1738095051488,-1780.37,0.00018219,2]
[350735643,1738095051497,-529.27,0.00018219,2]
[350735644,1738095051507,-553.58,0.00018219,2]
[350735645,1738095051516,-1613.34,0.00018219,2]
[350735646,1738095051526,-706.69,0.00018219,2]
[350735647,1738095051536,-5671.42,0.00018219,2]
[350735648,1738095051545,-500.0,0.00018219,2]
[350735649,1738095051555,-1191.48,0.00018219,2]
[350735650,1738095051564,-673.03,0.00018219,2]
[350735651,1738095051574,-755.48,0.00018219,2]
[350735652,1738095051583,-500.0,0.00018219,2]
[350735653,1738095051593,-1443.87,0.00018219,2]
[350735654,1738095051602,-500.0,0.00018251,2]
[350735655,1738095051612,-154.0,0.00018266,2]
[350735656,1738095051622,-154.0,0.00018266,2]
[350735657,1738095051633,-154.0,0.00018266,2]
[350735658,1738095051643,-154.0,0.00018266,2]
[350735659,1738095051652,-154.0,0.00018266,2]
[350735660,1738095051662,-154.0,0.00018266,2]
[350735661,1738095051672,-154.0,0.00018266,2]
[350735662,1738095051682,-154.0,0.00018266,2]
[350735663,1738095051692,-154.0,0.00018266,2]
[350735664,1738095051701,-154.0,0.00018266,2]
[350735665,1738095051711,-154.0,0.00018266,2]
[350735666,1738095051720,-154.0,0.00018266,2]
[350735667,1738095051730,-154.0,0.00018266,2]
[350735668,1738095051739,-155.58,0.00018266,2]
[350735669,1738095051751,-10061.34571748,0.000183,5]
[350735670,1738095051762,-200.0,0.00018329,2]
[350735671,1738095051771,-537.53,0.00018356,2]
[350735672,1738095051781,-378.58,0.00018356,2]
[350735673,1738095051790,-935.05,0.00018356,2]
[350735674,1738095051801,-13791.98,0.00018356,2]
[350735675,1738095051813,-783.58,0.00018356,2]
[350735676,1738095051822,-651.72,0.00018356,2]
[350735677,1738095051832,-1395.62,0.00018356,2]
[350735678,1738095051843,-4374.37,0.00018356,2]
[350735679,1738095051852,-928.46,0.00018356,2]
[350735680,1738095051862,-500.0,0.00018356,2]
[350735681,1738095051871,-2107.22,0.00018356,2]
[350735682,1738095051881,-297.31981809,0.00018356,2]
[350735683,1738095051891,-699.6,0.00018356,2]
[350735684,1738095051900,-613.1,0.00018356,2]
[350735685,1738095051910,-327.41346915,0.00018356,2]
[350735686,1738095051919,-2467.19,0.00018356,2]
[350735687,1738095051929,-3673.36,0.00018356,2]
[350735688,1738095051939,-1341.71,0.00018356,2]
[350735689,1738095051948,-622.61,0.00018356,2]
[350735690,1738095051958,-798.14,0.00018356,2]
[350735691,1738095051967,-1780.37,0.00018356,2]
[350735692,1738095051977,-529.27,0.00018356,2]
[350735693,1738095051987,-553.58,0.00018356,2]
[350735694,1738095051997,-1613.34,0.00018356,2]
[350735695,1738095052008,-706.69,0.00018356,2]
[350735696,1738095052019,-5671.42,0.00018356,2]
[350735697,1738095052028,-500.0,0.00018356,2]
[350735698,1738095052038,-1191.48,0.00018356,2]
[350735699,1738095052050,-673.03,0.00018356,2]
[350735700,1738095052061,-755.48,0.00018356,2]
[350735701,1738095052070,-500.0,0.00018356,2]
[350735702,1738095052080,-1443.87,0.00018356,2]
[350735703,1738095052090,-4990.19,0.000184,2]
[350735704,1738095052100,-500.0,0.00018493,2]
[350735705,1738095052110,-537.53,0.00018493,2]
[350735706,1738095052120,-935.05,0.00018493,2]
[350735707,1738095052129,-13791.98,0.00018493,2]
[350735708,1738095052139,-783.58,0.00018493,2]
[350735709,1738095052149,-651.72,0.00018493,2]
[350735710,1738095052160,-1395.62,0.00018493,2]
[350735711,1738095052169,-4374.37,0.00018493,2]
[350735712,1738095052179,-928.46,0.00018493,2]
[350735713,1738095052188,-500.0,0.00018493,2]
[350735714,1738095052198,-2107.22,0.00018493,2]
[350735715,1738095052210,-699.6,0.00018493,2]
[350735716,1738095052220,-613.1,0.00018493,2]
[350735717,1738095052230,-2467.19,0.00018493,2]
[350735718,1738095052349,-3673.36,0.00018493,2]
[350735719,1738095052360,-1341.71,0.00018493,2]
[350735720,1738095052369,-622.61,0.00018493,2]
[350735721,1738095052379,-798.14,0.00018493,2]
[350735722,1738095052389,-1780.37,0.00018493,2]
[350735723,1738095052398,-529.27,0.00018493,2]
[350735724,1738095052408,-553.58,0.00018493,2]
[350735725,1738095052417,-1613.34,0.00018493,2]
[350735726,1738095052427,-706.69,0.00018493,2]
[350735727,1738095052437,-5671.42,0.00018493,2]
[350735728,1738095052447,-500.0,0.00018493,2]
[350735729,1738095052456,-1191.48,0.00018493,2]
[350735730,1738095052465,-673.03,0.00018493,2]
[350735731,1738095052475,-755.48,0.00018493,2]
[350735732,1738095052484,-500.0,0.00018493,2]
[350735733,1738095052493,-1443.87,0.00018493,2]
[350735734,1738095052503,-5423.43,0.000185,2]
[350735735,1738095052512,-587.0,0.00018541,2]
[350735736,1738095052521,-977.51016766,0.00018543,2]
[350735737,1738095052531,-214.0,0.00018562,2]
[350735738,1738095052540,-214.0,0.00018562,2]
[350735739,1738095052549,-717.73343266,0.00018574,2]
[350735740,1738095052558,-154.06,0.000186,2]
[350735741,1738095052568,-154.06,0.000186,2]
[350735742,1738095052579,-500.0,0.000186,2]
[350735743,1738095052589,-537.53,0.0001863,2]
[350735744,1738095052599,-935.05,0.0001863,2]
[350735745,1738095052609,-13791.98,0.0001863,2]
[350735746,1738095052620,-783.58,0.0001863,2]
[350735747,1738095052630,-651.72,0.0001863,2]
[350735748,1738095052640,-1395.62,0.0001863,2]
[350735749,1738095052650,-4374.37,0.0001863,2]
[350735750,1738095052661,-928.46,0.0001863,2]
[350735751,1738095052670,-500.0,0.0001863,2]
[350735752,1738095052680,-2107.22,0.0001863,2]
[350735753,1738095052690,-699.6,0.0001863,2]
[350735754,1738095052699,-613.1,0.0001863,2]
[350735755,1738095052708,-2467.19,0.0001863,2]
[350735756,1738095052718,-3673.36,0.0001863,2]
[350735757,1738095052728,-1341.71,0.0001863,2]
[350735758,1738095052738,-622.61,0.0001863,2]
[350735759,1738095052748,-798.14,0.0001863,2]
[350735760,1738095052757,-1780.37,0.0001863,2]
[350735761,1738095052767,-529.27,0.0001863,2]
[350735762,1738095052776,-553.58,0.0001863,2]
[350735763,1738095052786,-1613.34,0.0001863,2]
[350735764,1738095052796,-706.69,0.0001863,2]
[350735765,1738095052811,-5671.42,0.0001863,2]
[350735766,1738095052820,-500.0,0.0001863,2]
[350735767,1738095052830,-1191.48,0.0001863,2]
[350735768,1738095052841,-673.03,0.0001863,2]
[350735769,1738095052851,-755.48,0.0001863,2]
[350735770,1738095052860,-500.0,0.0001863,2]
[350735771,1738095052869,-1443.87,0.0001863,2]
[350735772,1738095052880,-600.0,0.0001866,2]
[350735773,1738095052891,-500.0,0.00018661,2]
[350735774,1738095052901,-986.2,0.000187,2]
[350735775,1738095052910,-150.0,0.000187,2]
[350735776,1738095052920,-500.0,0.00018767,2]
[350735777,1738095052930,-537.53,0.00018767,2]
[350735778,1738095052940,-935.05,0.00018767,2]
[350735779,1738095052950,-13791.98,0.00018767,2]
[350735780,1738095052959,-783.58,0.00018767,2]
[350735781,1738095052969,-651.72,0.00018767,2]
[350735782,1738095052980,-1395.62,0.00018767,2]
[350735783,1738095052989,-4374.37,0.00018767,2]
[350735784,1738095052999,-928.46,0.00018767,2]
[350735785,1738095053010,-500.0,0.00018767,2]
[350735786,1738095053021,-2107.22,0.00018767,2]
[350735787,1738095053032,-699.6,0.00018767,2]
[350735788,1738095053041,-613.1,0.00018767,2]
[350735789,1738095053052,-2467.19,0.00018767,2]
[350735790,1738095053062,-3673.36,0.00018767,2]
[350735791,1738095053072,-1341.71,0.00018767,2]
[350735792,1738095053083,-622.61,0.00018767,2]
[350735793,1738095053093,-798.14,0.00018767,2]
[350735794,1738095053103,-1780.37,0.00018767,2]
[350735795,1738095053114,-529.27,0.00018767,2]
[350735796,1738095053124,-553.58,0.00018767,2]
[350735797,1738095053135,-1613.34,0.00018767,2]
[350735798,1738095053145,-706.69,0.00018767,2]
[350735799,1738095053155,-5671.42,0.00018767,2]
[350735800,1738095053166,-500.0,0.00018767,2]
[350735801,1738095053175,-1191.48,0.00018767,2]
[350735802,1738095053185,-673.03,0.00018767,2]
[350735803,1738095053195,-755.48,0.00018767,2]
[350735804,1738095053204,-500.0,0.00018767,2]
[350735805,1738095053213,-1443.87,0.00018767,2]
[350735806,1738095053223,-297.0,0.0001886,2]
[350735807,1738095053233,-526.12524871,0.000189,2]
[350735808,1738095053243,-150.0,0.000189,2]
[350735809,1738095053252,-537.53,0.00018904,2]
[350735810,1738095053263,-935.05,0.00018904,2]
[350735811,1738095053272,-13791.98,0.00018904,2]
[350735812,1738095053282,-783.58,0.00018904,2]
[350735813,1738095053292,-651.72,0.00018904,2]
[350735814,1738095053302,-1395.62,0.00018904,2]
[350735815,1738095053312,-4374.37,0.00018904,2]
[350735816,1738095053322,-928.46,0.00018904,2]
[350735817,1738095053332,-500.0,0.00018904,2]
[350735818,1738095053343,-2107.22,0.00018904,2]
[350735819,1738095053353,-699.6,0.00018904,2]
[350735820,1738095053362,-613.1,0.00018904,2]
[350735821,1738095053371,-2467.19,0.00018904,2]
[350735822,1738095053381,-3673.36,0.00018904,2]
[350735823,1738095053391,-1341.71,0.00018904,2]
[350735824,1738095053400,-622.61,0.00018904,2]
[350735825,1738095053410,-798.14,0.00018904,2]
[350735826,1738095053420,-1780.37,0.00018904,2]
[350735827,1738095053431,-529.27,0.00018904,2]
[350735828,1738095053441,-553.58,0.00018904,2]
[350735829,1738095053452,-1613.34,0.00018904,2]
[350735830,1738095053462,-706.69,0.00018904,2]
[350735831,1738095053473,-5671.42,0.00018904,2]
[350735832,1738095053484,-500.0,0.00018904,2]
[350735833,1738095053493,-1191.48,0.00018904,2]
[350735834,1738095053503,-673.03,0.00018904,2]
[350735835,1738095053513,-755.48,0.00018904,2]
[350735836,1738095053523,-283.07058065,0.00018904,2]
[350735837,1738095053532,-1443.87,0.00018904,2]
[350735838,1738095053542,-10000.0,0.00019,2]
[350735839,1738095053551,-10000.0,0.00019,2]
[350735840,1738095053560,-4608.89242797,0.00019,4]
[350735841,1738095053570,-3531.0,0.00019,2]
[350735842,1738095053579,-200.13858604,0.00019,2]
[350735843,1738095053589,-950.44,0.00019041,2]
[350735844,1738095053598,-537.53,0.00019041,2]
[350735845,1738095053608,-935.05,0.00019041,2]
[350735846,1738095053619,-13791.98,0.00019041,2]
[350735847,1738095053629,-783.58,0.00019041,2]
[350735848,1738095053639,-651.72,0.00019041,2]
[350735849,1738095053648,-1395.62,0.00019041,2]
[350735850,1738095053658,-4374.37,0.00019041,2]
[350735851,1738095053669,-928.46,0.00019041,2]
[350735852,1738095053680,-500.0,0.00019041,2]
[350735853,1738095053690,-2107.22,0.00019041,2]
[350735854,1738095053700,-699.6,0.00019041,2]
[350735855,1738095053711,-613.1,0.00019041,2]
[350735856,1738095053721,-2467.19,0.00019041,2]
[350735857,1738095053731,-3673.36,0.00019041,2]
[350735858,1738095053741,-1341.71,0.00019041,2]
[350735859,1738095053751,-622.61,0.00019041,2]
[350735860,1738095053762,-798.14,0.00019041,2]
[350735861,1738095053772,-1780.37,0.00019041,2]
[350735862,1738095053782,-529.27,0.00019041,2]
[350735863,1738095053793,-553.58,0.00019041,2]
[350735864,1738095053807,-1613.34,0.00019041,2]
[350735865,1738095053817,-706.69,0.00019041,2]
[350735866,1738095053826,-5671.42,0.00019041,2]
[350735867,1738095053837,-500.0,0.00019041,2]
[350735868,1738095053848,-1191.48,0.00019041,2]
[350735869,1738095053857,-673.03,0.00019041,2]
[350735870,1738095053870,-755.48,0.00019041,2]
[350735871,1738095053881,-1443.87,0.00019041,2]
[350735872,1738095053890,-300.0,0.000191,8]
[350735873,1738095053899,-500.0,0.00019148,2]
[350735874,1738095053909,-717.73343266,0.00019162,2]
[350735875,1738095053918,-500.0,0.00019163,2]
[350735876,1738095053928,-500.0,0.00019178,2]
[350735877,1738095053937,-500.0,0.00019178,2]
[350735878,1738095053947,-500.0,0.00019178,2]
[350735879,1738095053957,-470.4817365,0.00019178,2]
[350735880,1738095053966,-537.53,0.00019178,2]
[350735881,1738095053976,-935.05,0.00019178,2]
[350735882,1738095053987,-13791.98,0.00019178,2]
[350735883,1738095053997,-783.58,0.00019178,2]
[350735884,1738095054007,-651.72,0.00019178,2]
[350735885,1738095054017,-1395.62,0.00019178,2]
[350735886,1738095054026,-4374.37,0.00019178,2]
[350735887,1738095054036,-928.46,0.00019178,2]
[350735888,1738095054046,-500.0,0.00019178,2]
[350735889,1738095054056,-2107.22,0.00019178,2]
[350735890,1738095054066,-699.6,0.00019178,2]
[350735891,1738095054075,-613.1,0.00019178,2]
[350735892,1738095054085,-500.0,0.00019178,7]
[350735893,1738095054095,-2467.19,0.00019178,2]
[350735894,1738095054105,-3673.36,0.00019178,2]
[350735895,1738095054114,-1341.71,0.00019178,2]
[350735896,1738095054123,-622.61,0.00019178,2]
[350735897,1738095054133,-798.14,0.00019178,2]
[350735898,1738095054142,-1780.37,0.00019178,2]
[350735899,1738095054152,-529.27,0.00019178,2]
[350735900,1738095054162,-553.58,0.00019178,2]
[350735901,1738095054172,-1613.34,0.00019178,2]
[350735902,1738095054183,-706.69,0.00019178,2]
[350735903,1738095054192,-5671.42,0.00019178,2]
[350735904,1738095054202,-500.0,0.00019178,2]
[350735905,1738095054212,-1191.48,0.00019178,2]
[350735906,1738095054221,-673.03,0.00019178,2]
[350735907,1738095054342,-755.48,0.00019178,2]
[350735908,1738095054352,-1443.87,0.00019178,2]
[350735909,1738095054362,-172.043055,0.00019178,2]
[350735910,1738095054372,-1000.0,0.00019209,2]
[350735911,1738095054382,-512.5,0.00019313,7]
[350735912,1738095054392,-537.53,0.00019315,2]
[350735913,1738095054402,-935.05,0.00019315,2]
[350735914,1738095054411,-13791.98,0.00019315,2]
[350735915,1738095054421,-783.58,0.00019315,2]
[350735916,1738095054432,-651.72,0.00019315,2]
[350735917,1738095054442,-1395.62,0.00019315,2]
[350735918,1738095054453,-4374.37,0.00019315,2]
[350735919,1738095054463,-928.46,0.00019315,2]
[350735920,1738095054473,-500.0,0.00019315,2]
[350735921,1738095054484,-2107.22,0.00019315,2]
[350735922,1738095054494,-699.6,0.00019315,2]
[350735923,1738095054503,-613.1,0.00019315,2]
[350735924,1738095054513,-2467.19,0.00019315,2]
[350735925,1738095054523,-3673.36,0.00019315,2]
[350735926,1738095054533,-1341.71,0.00019315,2]
[350735927,1738095054543,-622.61,0.00019315,2]
[350735928,1738095054553,-798.14,0.00019315,2]
[350735929,1738095054563,-1780.37,0.00019315,2]
[350735930,1738095054573,-529.27,0.00019315,2]
[350735931,1738095054583,-553.58,0.00019315,2]
[350735932,1738095054593,-1613.34,0.00019315,2]
[350735933,1738095054603,-706.69,0.00019315,2]
[350735934,1738095054613,-5671.42,0.00019315,2]
[350735935,1738095054623,-500.0,0.00019315,2]
[350735936,1738095054634,-1191.48,0.00019315,2]
[350735937,1738095054644,-673.03,0.00019315,2]
[350735938,1738095054654,-755.48,0.00019315,2]
[350735939,1738095054664,-1443.87,0.00019315,2]
[350735940,1738095054675,-537.53,0.00019452,2]
[350735941,1738095054686,-935.05,0.00019452,2]
[350735942,1738095054696,-13791.98,0.00019452,2]
[350735943,1738095054706,-783.58,0.00019452,2]
[350735944,1738095054716,-651.72,0.00019452,2]
[350735945,1738095054726,-1395.62,0.00019452,2]
[350735946,1738095054736,-4374.37,0.00019452,2]
[350735947,1738095054747,-928.46,0.00019452,2]
[350735948,1738095054757,-500.0,0.00019452,2]
[350735949,1738095054768,-2107.22,0.00019452,2]
[350735950,1738095054778,-699.6,0.00019452,2]
[350735951,1738095054789,-613.1,0.00019452,2]
[350735952,1738095054799,-2467.19,0.00019452,2]
[350735953,1738095054814,-3673.36,0.00019452,2]